[Event "*** Titled Tuesday Blitz"]
[Site "Chess.com"]
[Date "2021.04.06"]
[Round "1"]
[White "BlueWizzard"]
[Black "volkanyirik"]
[Result "1-0"]
[WhiteElo "2773"]
[BlackElo "2413"]
[TimeControl "180+1"]
[EndTime "10:01:22 PDT"]
[Termination "BlueWizzard won by resignation"]

1. d4 {[%clk 0:03:00.9]} 1... Nf6 {[%clk 0:02:59.4]} 2. Nc3 {[%clk 0:03:01.6]}
2... d5 {[%clk 0:02:58.7]} 3. Bg5 {[%clk 0:03:02.1]} 3... e6 {[%clk 0:02:58.8]}
4. a3 {[%clk 0:03:01.9]} 4... c5 {[%clk 0:02:58.2]} 5. e3 {[%clk 0:03:00.2]}
5... Nc6 {[%clk 0:02:57.4]} 6. Nf3 {[%clk 0:03:00.5]} 6... Be7 {[%clk
0:02:56.7]} 7. dxc5 {[%clk 0:03:00.3]} 7... Bxc5 {[%clk 0:02:56.4]} 8. Bd3
{[%clk 0:03:00.9]} 8... O-O {[%clk 0:02:56.4]} 9. Qe2 {[%clk 0:03:01.3]} 9... h6
{[%clk 0:02:56.8]} 10. Bh4 {[%clk 0:03:01.2]} 10... Be7 {[%clk 0:02:56.9]} 11.
Rd1 {[%clk 0:03:00.7]} 11... a6 {[%clk 0:02:54.9]} 12. O-O {[%clk 0:02:56.9]}
12... Qc7 {[%clk 0:02:52.1]} 13. e4 {[%clk 0:02:56.4]} 13... dxe4 {[%clk
0:02:50.8]} 14. Nxe4 {[%clk 0:02:51.9]} 14... Nd5 {[%clk 0:02:48.1]} 15. Bg3
{[%clk 0:02:50.9]} 15... Qd8 {[%clk 0:02:46.9]} 16. c4 {[%clk 0:02:49.5]} 16...
Nc7 {[%clk 0:02:46.3]} 17. Bc2 {[%clk 0:02:43.7]} 17... Qe8 {[%clk 0:02:45.2]}
18. Bxc7 {[%clk 0:02:43.1]} 1-0

[Event "*** Titled Tuesday Blitz"]
[Site "Chess.com"]
[Date "2021.04.06"]
[Round "1"]
[White "profofchess"]
[Black "Maddie"]
[Result "1-0"]
[WhiteElo "2503"]
[BlackElo "2071"]
[TimeControl "180+1"]
[EndTime "10:01:28 PDT"]
[Termination "profofchess won by checkmate"]

1. e4 {[%clk 0:02:59.1]} 1... c6 {[%clk 0:02:57.6]} 2. Nf3 {[%clk 0:02:58.7]}
2... d5 {[%clk 0:02:58.5]} 3. Nc3 {[%clk 0:02:59.3]} 3... dxe4 {[%clk
0:02:58.6]} 4. Nxe4 {[%clk 0:02:59.6]} 4... Nd7 {[%clk 0:02:59.5]} 5. Bc4 {[%clk
0:02:55.3]} 5... Ngf6 {[%clk 0:02:55.2]} 6. Neg5 {[%clk 0:02:54.6]} 6... e6
{[%clk 0:02:54.9]} 7. Qe2 {[%clk 0:02:54.4]} 7... Be7 {[%clk 0:02:52.9]} 8. Nxf7
{[%clk 0:02:52.8]} 8... Kxf7 {[%clk 0:02:48.1]} 9. Qxe6+ {[%clk 0:02:52.3]} 9...
Kg6 {[%clk 0:02:44]} 10. Qf7+ {[%clk 0:02:48.5]} 10... Kf5 {[%clk 0:02:40.5]}
11. Be6+ {[%clk 0:02:25.7]} 11... Ke4 {[%clk 0:02:37.7]} 12. d3# {[%clk
0:02:26.6]} 1-0

[Event "*** Titled Tuesday Blitz"]
[Site "Chess.com"]
[Date "2021.04.06"]
[Round "1"]
[White "Triumphmate"]
[Black "GM_Crest"]
[Result "0-1"]
[WhiteElo "2372"]
[BlackElo "2689"]
[TimeControl "180+1"]
[EndTime "10:01:36 PDT"]
[Termination "GM_Crest won by resignation"]

1. e4 {[%clk 0:03:00.6]} 1... c5 {[%clk 0:02:56.8]} 2. Nf3 {[%clk 0:03:00.9]}
2... d6 {[%clk 0:02:54.8]} 3. d4 {[%clk 0:03:01.4]} 3... Nf6 {[%clk 0:02:55.3]}
4. Nc3 {[%clk 0:03:01.3]} 4... cxd4 {[%clk 0:02:53]} 5. Nxd4 {[%clk 0:03:00.8]}
5... a6 {[%clk 0:02:53.5]} 6. f4 {[%clk 0:03:01.4]} 6... e6 {[%clk 0:02:49.3]}
7. Nf3 {[%clk 0:03:01.7]} 7... Nc6 {[%clk 0:02:37.5]} 8. Bd3 {[%clk 0:03:02.1]}
8... b5 {[%clk 0:02:37.6]} 9. a3 {[%clk 0:03:01.9]} 9... Bb7 {[%clk 0:02:38]}
10. O-O {[%clk 0:03:02.2]} 10... Be7 {[%clk 0:02:38.6]} 11. Kh1 {[%clk
0:03:00.7]} 11... O-O {[%clk 0:02:38.2]} 12. Qe1 {[%clk 0:02:53.2]} 12... b4
{[%clk 0:02:37.8]} 13. axb4 {[%clk 0:02:53.2]} 13... Nxb4 {[%clk 0:02:38]} 14.
Bd2 {[%clk 0:02:53.4]} 14... a5 {[%clk 0:02:31.8]} 15. Qg3 {[%clk 0:02:50.3]}
15... d5 {[%clk 0:02:30]} 16. e5 {[%clk 0:02:45.6]} 16... Ne4 {[%clk 0:02:29.9]}
17. Rae1 {[%clk 0:02:46.1]} 17... Nxg3+ {[%clk 0:02:29.6]} 0-1

[Event "*** Titled Tuesday Blitz"]
[Site "Chess.com"]
[Date "2021.04.06"]
[Round "1"]
[White "Benjoneliere44"]
[Black "Ceejay271"]
[Result "1-0"]
[WhiteElo "2627"]
[BlackElo "2328"]
[TimeControl "180+1"]
[EndTime "10:01:53 PDT"]
[Termination "Benjoneliere44 won by resignation"]

1. e4 {[%clk 0:02:59.5]} 1... c5 {[%clk 0:02:58.7]} 2. Nc3 {[%clk 0:02:58.3]}
2... Nc6 {[%clk 0:02:58.6]} 3. g3 {[%clk 0:02:54.6]} 3... g6 {[%clk 0:02:58.4]}
4. Bg2 {[%clk 0:02:55]} 4... Bg7 {[%clk 0:02:59]} 5. d3 {[%clk 0:02:55.5]} 5...
d6 {[%clk 0:02:59]} 6. Be3 {[%clk 0:02:53.9]} 6... e5 {[%clk 0:02:58.2]} 7. Qd2
{[%clk 0:02:51.6]} 7... Nge7 {[%clk 0:02:58.3]} 8. h4 {[%clk 0:02:50]} 8... Be6
{[%clk 0:02:53.1]} 9. h5 {[%clk 0:02:48.4]} 9... f5 {[%clk 0:02:46.1]} 10. Nd5
{[%clk 0:02:34.1]} 10... Qd7 {[%clk 0:02:39.2]} 11. h6 {[%clk 0:02:19.2]} 11...
Bxd5 {[%clk 0:02:30.3]} 12. hxg7 {[%clk 0:02:10.5]} 1-0

[Event "*** Titled Tuesday Blitz"]
[Site "Chess.com"]
[Date "2021.04.06"]
[Round "1"]
[White "Oglob71"]
[Black "Fy_Rakotomaharo"]
[Result "0-1"]
[WhiteElo "2375"]
[BlackElo "2693"]
[TimeControl "180+1"]
[EndTime "10:02:40 PDT"]
[Termination "Fy_Rakotomaharo won by resignation"]

1. Nf3 {[%clk 0:02:52.3]} 1... c5 {[%clk 0:02:59.8]} 2. c4 {[%clk 0:02:51.7]}
2... Nc6 {[%clk 0:02:58.6]} 3. g3 {[%clk 0:02:51.9]} 3... e5 {[%clk 0:02:58.2]}
4. Bg2 {[%clk 0:02:52.2]} 4... g6 {[%clk 0:02:58.7]} 5. O-O {[%clk 0:02:52.5]}
5... Bg7 {[%clk 0:02:59.4]} 6. Nc3 {[%clk 0:02:53]} 6... Nge7 {[%clk 0:03:00.1]}
7. d3 {[%clk 0:02:53.4]} 7... O-O {[%clk 0:03:00.7]} 8. Ne1 {[%clk 0:02:53.5]}
8... d6 {[%clk 0:03:00.6]} 9. Nc2 {[%clk 0:02:53.8]} 9... Be6 {[%clk 0:03:01.2]}
10. Ne3 {[%clk 0:02:54.3]} 10... Rb8 {[%clk 0:03:01.3]} 11. Ned5 {[%clk
0:02:54.7]} 11... h6 {[%clk 0:03:00]} 12. Rb1 {[%clk 0:02:53.7]} 12... Qd7
{[%clk 0:02:59]} 13. a3 {[%clk 0:02:50.3]} 13... Bh3 {[%clk 0:02:58.2]} 14. b4
{[%clk 0:02:49.6]} 14... Bxg2 {[%clk 0:02:56.4]} 15. Kxg2 {[%clk 0:02:49.7]}
15... f5 {[%clk 0:02:53.9]} 16. f4 {[%clk 0:02:46.5]} 16... Nxd5 {[%clk
0:02:42]} 17. Nxd5 {[%clk 0:02:45.3]} 17... Rbe8 {[%clk 0:02:39.3]} 18. e3
{[%clk 0:02:44]} 18... b6 {[%clk 0:02:37.3]} 19. b5 {[%clk 0:02:43.1]} 19... Ne7
{[%clk 0:02:34.8]} 20. Qf3 {[%clk 0:02:41]} 20... Kh7 {[%clk 0:02:30.2]} 21.
Nxe7 {[%clk 0:02:38]} 21... Rxe7 {[%clk 0:02:29.4]} 22. Bd2 {[%clk 0:02:37.8]}
22... e4 {[%clk 0:02:28.9]} 23. dxe4 {[%clk 0:02:37.2]} 23... Rxe4 {[%clk
0:02:29.8]} 24. Qe2 {[%clk 0:02:37.6]} 24... d5 {[%clk 0:02:29.1]} 25. Rfd1
{[%clk 0:02:34.3]} 25... Rxc4 {[%clk 0:02:26.9]} 26. Bc1 {[%clk 0:02:28.4]}
26... Qe6 {[%clk 0:02:26.6]} 27. Bb2 {[%clk 0:02:27.2]} 27... Qe4+ {[%clk
0:02:26]} 28. Kg1 {[%clk 0:02:24]} 28... Rc2 {[%clk 0:02:25.7]} 29. Qf1 {[%clk
0:02:22.2]} 29... Qxe3+ {[%clk 0:02:18.3]} 0-1

[Event "*** Titled Tuesday Blitz"]
[Site "Chess.com"]
[Date "2021.04.06"]
[Round "1"]
[White "INDIAN-ELEPHANT"]
[Black "mr_gustavo"]
[Result "1-0"]
[WhiteElo "2699"]
[BlackElo "2377"]
[TimeControl "180+1"]
[EndTime "10:02:52 PDT"]
[Termination "INDIAN-ELEPHANT won by resignation"]

1. d4 {[%clk 0:02:55.2]} 1... Nf6 {[%clk 0:02:57.6]} 2. Nf3 {[%clk 0:02:55.2]}
2... e6 {[%clk 0:02:52.6]} 3. Bg5 {[%clk 0:02:54.1]} 3... d5 {[%clk 0:02:46.6]}
4. Nbd2 {[%clk 0:02:53.5]} 4... Be7 {[%clk 0:02:39.6]} 5. e3 {[%clk 0:02:52.9]}
5... O-O {[%clk 0:02:38.9]} 6. Bd3 {[%clk 0:02:52.3]} 6... h6 {[%clk 0:02:31.8]}
7. Bh4 {[%clk 0:02:51.8]} 7... c5 {[%clk 0:02:31.6]} 8. c3 {[%clk 0:02:50.9]}
8... Nc6 {[%clk 0:02:31.3]} 9. O-O {[%clk 0:02:50.2]} 9... Qc7 {[%clk
0:02:31.3]} 10. Bg3 {[%clk 0:02:48.3]} 10... Bd6 {[%clk 0:02:30.6]} 11. dxc5
{[%clk 0:02:47.9]} 11... Bxg3 {[%clk 0:02:30]} 12. hxg3 {[%clk 0:02:48.8]} 12...
a5 {[%clk 0:02:27.1]} 13. e4 {[%clk 0:02:47.4]} 13... Ne5 {[%clk 0:02:13.6]} 14.
Nxe5 {[%clk 0:02:46.9]} 14... Qxe5 {[%clk 0:02:14.5]} 15. f4 {[%clk 0:02:44.8]}
15... Qc7 {[%clk 0:02:14.4]} 16. e5 {[%clk 0:02:45.7]} 16... Qxc5+ {[%clk
0:02:14.1]} 17. Kh2 {[%clk 0:02:46]} 17... Nd7 {[%clk 0:02:11.4]} 18. Nb3 {[%clk
0:02:46.1]} 18... Qc7 {[%clk 0:02:11.3]} 19. Nd4 {[%clk 0:02:44.9]} 19... b6
{[%clk 0:02:11.7]} 20. Qe2 {[%clk 0:02:40.3]} 20... Nc5 {[%clk 0:02:11.1]} 21.
Bb5 {[%clk 0:02:39.2]} 21... Ba6 {[%clk 0:02:09.6]} 22. Bxa6 {[%clk 0:02:38.9]}
22... Nxa6 {[%clk 0:02:10.5]} 23. f5 {[%clk 0:02:36]} 23... exf5 {[%clk
0:02:08.9]} 24. Nxf5 {[%clk 0:02:35.6]} 24... Nc5 {[%clk 0:02:05.9]} 25. Qg4
{[%clk 0:02:32.3]} 25... Qxe5 {[%clk 0:02:02]} 26. Nxh6+ {[%clk 0:02:31.6]}
26... Kh7 {[%clk 0:02:02.1]} 27. Nxf7 {[%clk 0:02:29.7]} 27... Qe7 {[%clk
0:01:55.7]} 28. Qh5+ {[%clk 0:02:29.1]} 1-0

[Event "*** Titled Tuesday Blitz"]
[Site "Chess.com"]
[Date "2021.04.06"]
[Round "1"]
[White "Blitzking642"]
[Black "hansen"]
[Result "0-1"]
[WhiteElo "2442"]
[BlackElo "2843"]
[TimeControl "180+1"]
[EndTime "10:02:57 PDT"]
[Termination "hansen won by resignation"]

1. e4 {[%clk 0:03:00.9]} 1... c5 {[%clk 0:02:49.7]} 2. Nf3 {[%clk 0:03:00.8]}
2... e6 {[%clk 0:02:47.2]} 3. d4 {[%clk 0:03:00.6]} 3... cxd4 {[%clk 0:02:47.2]}
4. Nxd4 {[%clk 0:03:01.5]} 4... a6 {[%clk 0:02:47.5]} 5. c4 {[%clk 0:03:00.9]}
5... Nf6 {[%clk 0:02:46.1]} 6. Nc3 {[%clk 0:03:00.9]} 6... Qc7 {[%clk
0:02:44.9]} 7. Be2 {[%clk 0:03:00.5]} 7... Bb4 {[%clk 0:02:44.7]} 8. Qd3 {[%clk
0:03:00.2]} 8... Nc6 {[%clk 0:02:44.9]} 9. Nxc6 {[%clk 0:02:55.2]} 9... dxc6
{[%clk 0:02:42.8]} 10. a3 {[%clk 0:02:54]} 10... Be7 {[%clk 0:02:42.4]} 11. O-O
{[%clk 0:02:46.9]} 11... e5 {[%clk 0:02:38.3]} 12. f4 {[%clk 0:02:28.5]} 12...
Be6 {[%clk 0:02:36.8]} 13. fxe5 {[%clk 0:02:18.4]} 13... Qxe5 {[%clk 0:02:31.8]}
14. Bf4 {[%clk 0:02:18.5]} 14... Qc5+ {[%clk 0:02:30.4]} 15. Be3 {[%clk
0:02:18.4]} 15... Qd6 {[%clk 0:02:28.4]} 16. c5 {[%clk 0:01:55.3]} 16... Qxd3
{[%clk 0:02:27.2]} 17. Bxd3 {[%clk 0:01:55.4]} 17... Ng4 {[%clk 0:02:26.3]} 18.
Bd4 {[%clk 0:01:46]} 18... O-O-O {[%clk 0:02:21]} 19. Ne2 {[%clk 0:01:38.7]}
19... Rxd4 {[%clk 0:02:20.6]} 20. Nxd4 {[%clk 0:01:39.6]} 20... Bxc5 {[%clk
0:02:20.9]} 21. h3 {[%clk 0:01:37.4]} 21... Bxd4+ {[%clk 0:02:20.4]} 22. Kh1
{[%clk 0:01:37.7]} 22... Nf2+ {[%clk 0:02:20.7]} 0-1

[Event "*** Titled Tuesday Blitz"]
[Site "Chess.com"]
[Date "2021.04.06"]
[Round "1"]
[White "Beca95"]
[Black "sakkikuska"]
[Result "1-0"]
[WhiteElo "2917"]
[BlackElo "2460"]
[TimeControl "180+1"]
[EndTime "10:03:17 PDT"]
[Termination "Beca95 won by resignation"]

1. d4 {[%clk 0:03:00.9]} 1... Nf6 {[%clk 0:02:58.4]} 2. c4 {[%clk 0:03:00.9]}
2... g6 {[%clk 0:02:58.7]} 3. Nc3 {[%clk 0:02:59.6]} 3... d5 {[%clk 0:02:58.8]}
4. Nf3 {[%clk 0:02:59.8]} 4... Bg7 {[%clk 0:02:58.6]} 5. Qb3 {[%clk 0:03:00.5]}
5... dxc4 {[%clk 0:02:58.3]} 6. Qxc4 {[%clk 0:03:01.4]} 6... O-O {[%clk
0:02:58.5]} 7. e4 {[%clk 0:03:01.3]} 7... Nc6 {[%clk 0:02:58.7]} 8. Be3 {[%clk
0:03:00]} 8... Bg4 {[%clk 0:02:57.8]} 9. e5 {[%clk 0:02:54.4]} 9... Nd7 {[%clk
0:02:42.5]} 10. O-O-O {[%clk 0:02:51.8]} 10... Nb6 {[%clk 0:02:40.5]} 11. Qc5
{[%clk 0:02:51.9]} 11... Nd7 {[%clk 0:02:30.3]} 12. Qa3 {[%clk 0:02:50.7]} 12...
a6 {[%clk 0:02:26.6]} 13. h3 {[%clk 0:02:32.1]} 13... Bxf3 {[%clk 0:02:22.9]}
14. gxf3 {[%clk 0:02:33]} 14... b5 {[%clk 0:02:23.5]} 15. Qb3 {[%clk 0:02:33.1]}
15... Na5 {[%clk 0:02:09.6]} 16. Qc2 {[%clk 0:02:30.1]} 16... Nc4 {[%clk
0:01:52.7]} 17. Bxc4 {[%clk 0:02:22.4]} 17... bxc4 {[%clk 0:01:53.6]} 18. f4
{[%clk 0:02:22.7]} 18... Nb6 {[%clk 0:01:49.8]} 19. d5 {[%clk 0:02:22.7]} 19...
Qd7 {[%clk 0:01:45.5]} 20. h4 {[%clk 0:02:22.8]} 20... Rfd8 {[%clk 0:01:38.1]}
21. h5 {[%clk 0:02:22]} 21... c6 {[%clk 0:01:30.5]} 22. Bxb6 {[%clk 0:02:20.4]}
1-0

[Event "*** Titled Tuesday Blitz"]
[Site "Chess.com"]
[Date "2021.04.06"]
[Round "1"]
[White "alexrustemov"]
[Black "andrewtnb"]
[Result "1-0"]
[WhiteElo "2664"]
[BlackElo "2359"]
[TimeControl "180+1"]
[EndTime "10:03:17 PDT"]
[Termination "alexrustemov won by resignation"]

1. d4 {[%clk 0:03:00.9]} 1... d5 {[%clk 0:02:58.3]} 2. c4 {[%clk 0:03:00.5]}
2... dxc4 {[%clk 0:02:57.8]} 3. e3 {[%clk 0:02:57]} 3... Nf6 {[%clk 0:02:57.6]}
4. Bxc4 {[%clk 0:02:56.4]} 4... e6 {[%clk 0:02:54.4]} 5. Nf3 {[%clk 0:02:56.4]}
5... c5 {[%clk 0:02:53.3]} 6. O-O {[%clk 0:02:56.8]} 6... a6 {[%clk 0:02:53.4]}
7. e4 {[%clk 0:02:57]} 7... b5 {[%clk 0:02:43]} 8. Bd3 {[%clk 0:02:56.6]} 8...
Bb7 {[%clk 0:02:41.2]} 9. Bg5 {[%clk 0:02:57]} 9... h6 {[%clk 0:02:37]} 10. Bxf6
{[%clk 0:02:56.7]} 10... Qxf6 {[%clk 0:02:31.8]} 11. a4 {[%clk 0:02:56.5]} 11...
c4 {[%clk 0:01:53.7]} 12. Bc2 {[%clk 0:02:53.9]} 12... Bb4 {[%clk 0:01:45.6]}
13. axb5 {[%clk 0:02:48.4]} 13... axb5 {[%clk 0:01:46.5]} 14. Rxa8 {[%clk
0:02:48.4]} 14... Bxa8 {[%clk 0:01:47.4]} 15. Nc3 {[%clk 0:02:47.1]} 15... Bc6
{[%clk 0:01:40.8]} 16. Ne5 {[%clk 0:02:43.4]} 16... O-O {[%clk 0:01:02.5]} 17.
Nxc6 {[%clk 0:02:37.7]} 17... Nxc6 {[%clk 0:01:03.4]} 18. Nxb5 {[%clk
0:02:38.1]} 18... Nxd4 {[%clk 0:00:56.9]} 19. Qxd4 {[%clk 0:02:36.8]} 1-0

[Event "*** Titled Tuesday Blitz"]
[Site "Chess.com"]
[Date "2021.04.06"]
[Round "1"]
[White "isla88"]
[Black "gahryman"]
[Result "0-1"]
[WhiteElo "2409"]
[BlackElo "2755"]
[TimeControl "180+1"]
[EndTime "10:03:25 PDT"]
[Termination "gahryman won by resignation"]

1. c4 {[%clk 0:03:00.9]} 1... Nf6 {[%clk 0:02:59.5]} 2. Nc3 {[%clk 0:03:00.5]}
2... g6 {[%clk 0:03:00.4]} 3. g3 {[%clk 0:03:00]} 3... Bg7 {[%clk 0:03:00.8]} 4.
Bg2 {[%clk 0:03:00.4]} 4... O-O {[%clk 0:03:01.7]} 5. e3 {[%clk 0:03:00.9]} 5...
d6 {[%clk 0:03:02.6]} 6. Nge2 {[%clk 0:03:01.2]} 6... e5 {[%clk 0:03:01.8]} 7.
O-O {[%clk 0:03:01.8]} 7... Nbd7 {[%clk 0:03:02.4]} 8. d4 {[%clk 0:03:02]} 8...
c6 {[%clk 0:03:01.3]} 9. b3 {[%clk 0:03:02.2]} 9... Re8 {[%clk 0:02:57.4]} 10.
Ba3 {[%clk 0:03:02.6]} 10... Bf8 {[%clk 0:02:56.7]} 11. Rc1 {[%clk 0:03:00.5]}
11... exd4 {[%clk 0:02:51.3]} 12. Nxd4 {[%clk 0:03:00.1]} 12... Nc5 {[%clk
0:02:49.3]} 13. Bxc5 {[%clk 0:02:59.2]} 13... dxc5 {[%clk 0:02:48.8]} 14. Nf3
{[%clk 0:02:59.7]} 14... Qa5 {[%clk 0:02:45.4]} 15. Qd2 {[%clk 0:02:56.2]} 15...
Bg7 {[%clk 0:02:37.9]} 16. Nd5 {[%clk 0:02:49.5]} 16... Qxd2 {[%clk 0:02:30.5]}
17. Nxf6+ {[%clk 0:02:48.7]} 17... Bxf6 {[%clk 0:02:31.4]} 18. Nxd2 {[%clk
0:02:48.9]} 18... a5 {[%clk 0:02:31.4]} 19. Ne4 {[%clk 0:02:48.3]} 19... Be7
{[%clk 0:02:31.2]} 20. Rfd1 {[%clk 0:02:47.1]} 20... a4 {[%clk 0:02:30.5]} 21.
Nd6 {[%clk 0:02:46.9]} 21... Bxd6 {[%clk 0:02:30.3]} 22. Rxd6 {[%clk 0:02:47.8]}
22... axb3 {[%clk 0:02:30.9]} 23. axb3 {[%clk 0:02:47.7]} 23... Bf5 {[%clk
0:02:28.6]} 24. h3 {[%clk 0:02:37.3]} 24... h5 {[%clk 0:02:28.1]} 25. Kh2 {[%clk
0:02:35.4]} 25... Ra2 {[%clk 0:02:21.7]} 26. Kg1 {[%clk 0:02:24.2]} 26... Rb2
{[%clk 0:02:19.6]} 27. Rcd1 {[%clk 0:02:20]} 27... Rxb3 {[%clk 0:02:11.7]} 28.
Rd8 {[%clk 0:02:20]} 28... Rxd8 {[%clk 0:02:10.5]} 29. Rxd8+ {[%clk 0:02:19.3]}
29... Kg7 {[%clk 0:02:11.4]} 30. Rb8 {[%clk 0:02:16.7]} 30... Bd3 {[%clk
0:01:52.4]} 31. Bxc6 {[%clk 0:02:13.3]} 31... Rb1+ {[%clk 0:01:52.3]} 32. Kg2
{[%clk 0:02:11.4]} 32... bxc6 {[%clk 0:01:51.6]} 0-1

[Event "*** Titled Tuesday Blitz"]
[Site "Chess.com"]
[Date "2021.04.06"]
[Round "1"]
[White "WonderChampion"]
[Black "ChessAurochs"]
[Result "0-1"]
[WhiteElo "2127"]
[BlackElo "2515"]
[TimeControl "180+1"]
[EndTime "10:03:30 PDT"]
[Termination "ChessAurochs won by resignation"]

1. d4 {[%clk 0:02:58.6]} 1... Nf6 {[%clk 0:02:58.2]} 2. Bg5 {[%clk 0:02:56]}
2... d5 {[%clk 0:02:57.9]} 3. Nd2 {[%clk 0:02:55.1]} 3... e6 {[%clk 0:02:57.3]}
4. Ngf3 {[%clk 0:02:54.3]} 4... c5 {[%clk 0:02:55.5]} 5. e3 {[%clk 0:02:54.3]}
5... Nc6 {[%clk 0:02:55.3]} 6. c3 {[%clk 0:02:52.7]} 6... Bd7 {[%clk 0:02:50.5]}
7. Bb5 {[%clk 0:02:51.7]} 7... Qb6 {[%clk 0:02:49.2]} 8. Bxc6 {[%clk 0:02:48.4]}
8... Bxc6 {[%clk 0:02:43]} 9. Bxf6 {[%clk 0:02:48]} 9... gxf6 {[%clk 0:02:42.9]}
10. Rb1 {[%clk 0:02:48.9]} 10... Rg8 {[%clk 0:02:41.3]} 11. g3 {[%clk
0:02:46.2]} 11... Bb5 {[%clk 0:02:32]} 12. a4 {[%clk 0:02:42.9]} 12... Bd3
{[%clk 0:02:30.6]} 13. Rc1 {[%clk 0:02:42.9]} 13... Qxb2 {[%clk 0:02:26.5]} 14.
Nb3 {[%clk 0:02:42.2]} 14... Be4 {[%clk 0:02:26.4]} 15. Nbd2 {[%clk 0:02:33.4]}
15... f5 {[%clk 0:02:21.6]} 16. a5 {[%clk 0:02:23]} 16... Rc8 {[%clk 0:02:14.5]}
17. Nxe4 {[%clk 0:02:17.9]} 17... fxe4 {[%clk 0:02:13.3]} 18. Ne5 {[%clk
0:02:15.3]} 18... Qb5 {[%clk 0:01:51.8]} 19. Ra1 {[%clk 0:01:53.5]} 19... cxd4
{[%clk 0:01:47.8]} 20. cxd4 {[%clk 0:01:41.8]} 20... Bb4+ {[%clk 0:01:46.9]} 0-1

[Event "*** Titled Tuesday Blitz"]
[Site "Chess.com"]
[Date "2021.04.06"]
[Round "1"]
[White "TengisChess"]
[Black "Larciano"]
[Result "1-0"]
[WhiteElo "2487"]
[BlackElo "1994"]
[TimeControl "180+1"]
[EndTime "10:03:30 PDT"]
[Termination "TengisChess won by resignation"]

1. e4 {[%clk 0:03:00.4]} 1... e5 {[%clk 0:02:59.5]} 2. Nf3 {[%clk 0:03:00.4]}
2... Nc6 {[%clk 0:02:58.1]} 3. Bc4 {[%clk 0:02:58.3]} 3... Nf6 {[%clk 0:02:57]}
4. d3 {[%clk 0:02:55.4]} 4... Bc5 {[%clk 0:02:56.5]} 5. Be3 {[%clk 0:02:52.7]}
5... Bb6 {[%clk 0:02:55.7]} 6. O-O {[%clk 0:02:52.5]} 6... d6 {[%clk 0:02:55.1]}
7. h3 {[%clk 0:02:51.1]} 7... O-O {[%clk 0:02:54.8]} 8. Nc3 {[%clk 0:02:50.8]}
8... h6 {[%clk 0:02:53]} 9. Nh2 {[%clk 0:02:49.4]} 9... Be6 {[%clk 0:02:38.5]}
10. Bb3 {[%clk 0:02:49.2]} 10... Ne7 {[%clk 0:02:31.5]} 11. Ng4 {[%clk
0:02:41.3]} 11... Nxg4 {[%clk 0:02:29.4]} 12. hxg4 {[%clk 0:02:42.2]} 12... Ng6
{[%clk 0:02:29.6]} 13. Nd5 {[%clk 0:02:36.1]} 13... Bxd5 {[%clk 0:02:27]} 14.
Bxd5 {[%clk 0:02:33]} 14... c6 {[%clk 0:02:27.2]} 15. Bb3 {[%clk 0:02:32.1]}
15... Qf6 {[%clk 0:02:24.4]} 16. g3 {[%clk 0:02:25.2]} 16... Bxe3 {[%clk
0:02:22]} 17. fxe3 {[%clk 0:02:26.1]} 17... Qg5 {[%clk 0:02:19.6]} 18. Qe2
{[%clk 0:02:24.7]} 18... Rad8 {[%clk 0:02:09.2]} 19. Rf5 {[%clk 0:02:24.4]}
19... Qe7 {[%clk 0:02:04.6]} 20. g5 {[%clk 0:02:23.5]} 20... hxg5 {[%clk
0:01:54]} 21. Qh5 {[%clk 0:02:23.3]} 21... d5 {[%clk 0:01:42.6]} 22. Kg2 {[%clk
0:02:20.9]} 22... Nh4+ {[%clk 0:01:31.4]} 23. gxh4 {[%clk 0:02:13.9]} 23... g6
{[%clk 0:01:31.6]} 24. Qxg5 {[%clk 0:02:14.1]} 24... Qxg5+ {[%clk 0:01:26.3]}
25. Rxg5 {[%clk 0:02:15]} 1-0

[Event "*** Titled Tuesday Blitz"]
[Site "Chess.com"]
[Date "2021.04.06"]
[Round "1"]
[White "anasta10"]
[Black "lanita_1408"]
[Result "1-0"]
[WhiteElo "2520"]
[BlackElo "2141"]
[TimeControl "180+1"]
[EndTime "10:03:38 PDT"]
[Termination "anasta10 won by resignation"]

1. d4 {[%clk 0:02:59.6]} 1... Nf6 {[%clk 0:02:56.5]} 2. c4 {[%clk 0:02:59.4]}
2... e6 {[%clk 0:02:56.4]} 3. Nc3 {[%clk 0:02:59.6]} 3... Bb4 {[%clk 0:02:56.1]}
4. Nf3 {[%clk 0:02:59.9]} 4... d5 {[%clk 0:02:51]} 5. g3 {[%clk 0:02:58]} 5...
dxc4 {[%clk 0:02:44.8]} 6. Bg2 {[%clk 0:02:57.5]} 6... Nc6 {[%clk 0:02:29.6]} 7.
O-O {[%clk 0:02:57.5]} 7... O-O {[%clk 0:02:23.5]} 8. Qa4 {[%clk 0:02:56.2]}
8... a6 {[%clk 0:02:16.2]} 9. Rd1 {[%clk 0:02:54.8]} 9... Bd7 {[%clk 0:02:13.4]}
10. Qc2 {[%clk 0:02:51.2]} 10... Qe7 {[%clk 0:02:09.7]} 11. e4 {[%clk
0:02:48.7]} 11... e5 {[%clk 0:02:02.5]} 12. dxe5 {[%clk 0:02:35.8]} 12... Nxe5
{[%clk 0:02:01.9]} 13. Nxe5 {[%clk 0:02:33.2]} 13... Qxe5 {[%clk 0:02:02.3]} 14.
Bf4 {[%clk 0:02:33.8]} 14... Qe7 {[%clk 0:01:54.9]} 15. e5 {[%clk 0:02:28.2]}
15... Ng4 {[%clk 0:01:53.1]} 16. Nd5 {[%clk 0:02:26.9]} 16... Qc5 {[%clk
0:01:49]} 17. Nxb4 {[%clk 0:02:25.4]} 17... Qxb4 {[%clk 0:01:49.2]} 18. Rxd7
{[%clk 0:02:23.6]} 18... Rad8 {[%clk 0:01:46]} 19. Rxd8 {[%clk 0:02:12]} 19...
Rxd8 {[%clk 0:01:46.9]} 20. h3 {[%clk 0:02:10.6]} 20... Nh6 {[%clk 0:01:38.5]}
21. Bxh6 {[%clk 0:02:10.7]} 21... gxh6 {[%clk 0:01:37.8]} 22. a3 {[%clk
0:02:09.2]} 22... Qc5 {[%clk 0:01:35.9]} 23. Re1 {[%clk 0:02:06.7]} 23... b5
{[%clk 0:01:32.5]} 24. Qf5 {[%clk 0:02:03.3]} 1-0